[Event "24th Hoogeschool Zeeland 2022"]
[Site "Vlissingen"]
[Date "2022.08.13"]
[Round "9.1"]
[White "Harsha Bharathakoti"]
[Black "Lalith Babu M R"]
[Result "1-0"]
[ECO "C77"]
[WhiteElo "2547"]
[BlackElo "2549"]
[Annotator "TA"]
[PlyCount "65"]
[EventDate "2022.08.05"]
[EventType "swiss"]
[EventCountry "NED"]
[SourceTitle "playchess.com"]
[Source "ChessBase"]
[SourceQuality "1"]
[TimeControl "40/5400+30:1800+30"]

{[%evp 12,65,22,23,16,20,27,27,11,12,29,41,35,42,37,41,76,52,64,43,80,72,81,83,81,70,59,80,71,68,62,60,77,66,98,66,84,62,149,159,127,132,191,187,245,229,295,277,417,416,409,377,870,851,930,892]} 1. e4 {[%emt 0:00:21]} e5 {[%emt 0:00:16]} 2. Nf3 {[%emt 0:00:18]} Nc6 {[%emt 0:00:05]} 3. Bb5 {[%emt 0:00:16][%cal Bf1b5,Bb5a4,Ba4b3][%mdl 32]} a6 {[%emt 0:00:05]} 4. Ba4 {[%emt 0:00:14]} Nf6 {[%emt 0:00:06]} 5. d3 {[%emt 0:00:45]} b5 {[%emt 0:00:10]} 6. Bb3 {[%emt 0:00:04]} Bc5 {[%emt 0:00:15]} 7. Bg5 {[%emt 0:00:08]} h6 {[%emt 0:00:49] C77: Ruy Lopez: 3...a6 4 Ba4 Nf6, unusual lines.} 8. Bh4 {[%emt 0:00:05]} d6 {[%emt 0:01:00]} 9. c3 {[%emt 0:00:08]} Bb6 {[%emt 0:00:10] White has an edge.} 10. a4 {[%emt 0:02:17] is the new trend.} Rb8 {[%emt 0:08:30]} (10... g5 $5 {[%cal Rg5h4]} 11. Bg3 (11. axb5 Na5 $15) 11... b4 $11) 11. axb5 {[%emt 0:06:32]} (11. O-O {keeps more tension.} g5 12. axb5 Na5 13. Ba2) 11... axb5 {[%emt 0:00:25]} 12. Na3 {[%emt 0:00:07]} g5 {[%emt 0:06:50]} 13. Bg3 {[%emt 0:00:39] [#]} b4 $146 {[%emt 0:03:31]} ({Predecessor:} 13... Na5 14. Bc2 b4 15. cxb4 Nc6 16. Ba4 Bd7 17. Nc4 Nxb4 18. Bxd7+ Nxd7 19. O-O O-O 20. Nxb6 Rxb6 {1-0 (41) Praggnanandhaa,R (2642)-Carlsen,M (2864) chess24.com INT 2022}) 14. Nc4 {[%emt 0:02:29]} (14. Ba4 $5 {[%cal Ra4c6]} Bd7 15. Nc4 $14) 14... bxc3 {[%emt 0:02:37] White must now prevent ...g4.} 15. bxc3 {[%emt 0:00:23]} Ne7 {[%emt 0:03:16][%cal Bc6e7,Be7g6,Bg6f4][%mdl 32]} 16. Nxb6 {[%emt 0:14:05]} Rxb6 {[%emt 0:00:07]} 17. h4 {[%emt 0:03:31]} g4 {[%emt 0:03:18]} 18. Nd2 {[%emt 0:01:05] White is more active.} Ng6 {[%emt 0:00:19]} 19. Nc4 {[%emt 0:02:58]} Rb8 {[%emt 0:00:33]} 20. Ba4+ {[%emt 0:10:32]} Kf8 {[%emt 0:07:41]} 21. Ne3 {[%emt 0:22:27]} Nf4 {[%emt 0:14:58]} 22. O-O {[%emt 0:01:39]} N6h5 {[%emt 0:05:59]} 23. Bc2 {[%emt 0:05:23]} (23. Nxg4 Rg8 24. Ne3 (24. Nxh6 $2 Nxg3 25. fxg3 Rxg3 $19) 24... Rxg3 25. fxg3 Nxg3 26. Rxf4 exf4 $19) 23... Rg8 {[%emt 0:02:25]} 24. d4 {[%emt 0:02:41]} Qf6 {[%emt 0:07:34] [#]} ({Black should play} 24... Be6 $14) 25. Kh2 $1 $16 {[%emt 0:01:13]} Kg7 {[%emt 0:20:47]} 26. Ra7 {[%emt 0:01:11]} Qe7 {[%emt 0:00:29] [#]} (26... Qd8 $16 27. c4 Be6) 27. Qa1 $1 $18 {[%emt 0:05:01]} Kh8 {[%emt 0:05:00]} (27... Qf6 $142 28. Rxc7 Rd8) 28. Qa5 {[%emt 0:00:44]} ({Weaker is} 28. Kh1 Ne2 29. Qe1 Nef4 $16) 28... exd4 {[%emt 0:00:48]} 29. cxd4 {[%emt 0:00:40]} ({Less strong is} 29. Rxc7 Qd8 30. cxd4 Rb7 $14) 29... Rb7 {[%emt 0:00:44]} (29... Re8 $142 30. d5 Rd8 31. Rxc7 Bd7) 30. Rxb7 {[%emt 0:01:05]} Bxb7 {[%emt 0:00:04]} 31. Nf5 $1 {[%emt 0:00:11][%csl LRe7,LRh6]} Qd7 {[%emt 0:02:16]} (31... Qe6 32. d5 Qf6 33. Qxc7 Rc8 34. Qxb7 Rxc2 35. Qb8+ Kh7 36. Qxd6 Qxd6 37. Nxd6 Kg6 38. Bxf4 Nxf4) 32. Bxf4 {[%emt 0:01:12]} Nxf4 {[%emt 0:00:57]} 33. Qd2 {[%emt 0:00:04] Weighted Error Value: White=0.03 (flawless) /Black=0.30} 1-0

[Event "24th Hoogeschool Zeeland 2022"]
[Site "Vlissingen"]
[Date "2022.08.13"]
[Round "9.2"]
[White "Ikonnikov, Vyacheslav"]
[Black "Ponomariov, Ruslan"]
[Result "1/2-1/2"]
[ECO "D18"]
[WhiteElo "2493"]
[BlackElo "2642"]
[Annotator "TA"]
[PlyCount "89"]
[EventDate "2022.08.05"]
[EventType "swiss"]
[EventCountry "NED"]
[SourceTitle "playchess.com"]
[Source "ChessBase"]
[SourceQuality "1"]
[TimeControl "40/5400+30:1800+30"]

{[%evp 14,89,18,0,0,2,-2,8,15,14,14,18,18,25,14,11,25,19,24,0,16,0,10,-10,-12,-12,-2,-18,-10,-29,-31,-32,-12,-12,-12,-14,-18,-23,-14,-17,0,-22,-16,-11,-8,-14,-8,-18,-16,-12,0,-18,7,0,58,42,35,18,22,0,0,0,0,0,0,0,0,0,0,0,0,0,0,0,0,0,0,0]} 1. d4 {[%emt 0:00:03]} Nf6 {[%emt 0:00:10]} 2. Nf3 {[%emt 0:00:14]} d5 {[%emt 0:00:33]} 3. c4 {[%emt 0:00:14]} c6 {[%emt 0:00:08]} 4. Nc3 {[%emt 0:02:29]} dxc4 {[%emt 0:00:44]} 5. a4 {[%emt 0:00:06]} Bf5 {[%emt 0:00:11]} 6. e3 {[%emt 0:00:57]} e6 {[%emt 0:00:31]} 7. Bxc4 {[%emt 0:00:37]} Bb4 {[%emt 0:00:31]} 8. Bd2 {[%emt 0:08:31]} O-O {[%emt 0:02:43] D18: Slav Defence: 5 a4 Bf5 6 e3.} 9. Ne4 {[%emt 0:08:05]} Bxd2+ {[%emt 0:11:18]} 10. Nexd2 {[%emt 0:01:33] [#]} a5 $146 {[%emt 0:01:04]} ({Predecessor:} 10... Nbd7 11. Nh4 Bg4 12. Be2 Bxe2 13. Kxe2 e5 14. dxe5 Nxe5 15. Ndf3 Qb6 16. Qc2 Qa6+ {0-1 (28) Junge,W (1848)-Heuser,P (2095) Berlin 2014}) 11. O-O {[%emt 0:04:59]} Nbd7 {[%emt 0:01:27]} 12. Re1 {[%emt 0:03:00]} Ne4 {[%emt 0:04:34]} 13. Nxe4 {[%emt 0:06:59]} (13. Qb3 {looks sharper.} Qc7 14. Nxe4 Bxe4 15. Nd2) 13... Bxe4 {[%emt 0:00:38]} 14. Nd2 {[%emt 0:00:37]} Bg6 {[%emt 0:00:35]} 15. Qb3 {[%emt 0:08:31]} Nb6 {[%emt 0:02:45]} 16. Qc3 {[%emt 0:10:56]} Qd6 {[%emt 0:04:25]} 17. Rec1 {[%emt 0:01:04]} Rfd8 {[%emt 0:02:32]} 18. Nb3 {[%emt 0:01:22]} Nxc4 {[%emt 0:00:25]} 19. Qxc4 {[%emt 0:00:24]} e5 {[%emt 0:00:14]} 20. Qc5 {[%emt 0:03:40]} exd4 {[%emt 0:02:01]} 21. Qxd6 {[%emt 0:05:10]} Rxd6 {[%emt 0:00:06]} 22. Nxd4 {[%emt 0:00:06]} f6 {[%emt 0:00:19]} 23. Ra3 {[%emt 0:05:24]} Bf7 {[%emt 0:01:46]} 24. Rac3 {[%emt 0:00:18]} Kf8 {[%emt 0:01:14]} 25. f3 {[%emt 0:00:49]} g6 {[%emt 0:04:27]} 26. Kf2 {[%emt 0:04:09]} Ke7 {[%emt 0:01:13]} 27. g4 {[%emt 0:03:57]} Ra6 {[%emt 0:04:29]} 28. Rc5 {[%emt 0:04:48]} Rd5 {[%emt 0:01:50]} 29. Rxd5 {[%emt 0:00:41]} Bxd5 $11 {[%emt 0:00:04][%mdl 4096] Endgame KRB-KRN} 30. e4 {[%emt 0:00:59]} Bf7 {[%emt 0:00:10]} 31. Ke3 {[%emt 0:05:20]} Kd6 {[%emt 0:04:10]} 32. Rc3 {[%emt 0:03:35]} (32. Rd1 $5 {[%cal Rd4b3]}) 32... Ra8 {[%emt 0:01:35]} 33. h4 {[%emt 0:00:18]} Re8 {[%emt 0:01:05]} (33... Ra6 $11) 34. Nb3 {[%emt 0:02:16]} b6 {[%emt 0:05:53]} 35. Nd4 {[%emt 0:00:05]} c5 {[%emt 0:01:44] The position is equal.} 36. Nb5+ {[%emt 0:00:06]} Ke7 $1 {[%emt 0:00:06]} 37. g5 {[%emt 0:00:38]} Rd8 {[%emt 0:05:13]} 38. Rd3 {[%emt 0:00:17]} Rxd3+ {[%emt 0:00:39]} 39. Kxd3 {[%emt 0:00:04] KB-KN} Bb3 {[%emt 0:00:18]} 40. Nc3 {[%emt 0:00:17] [#] Threatens to win with Nd5+.} fxg5 {[%emt 0:00:19]} 41. hxg5 {[%emt 0:30:06] Hoping for Nd5+.} Kd6 {[%emt 0:30:18] Against Nd5} 42. f4 {[%emt 0:00:22]} Ke6 {[%emt 0:00:14]} 43. Ke3 {[%emt 0:00:34]} Kd6 $1 {[%emt 0:00:33]} 44. Kd3 {[%emt 0:00:49]} Ke6 {[%emt 0:00:05]} 45. Ke3 {[%emt 0:00:44] Weighted Error Value: White=0.07 (flawless) /Black=0.06 (flawless)} 1/2-1/2

[Event "24th Hoogeschool Zeeland 2022"]
[Site "Vlissingen"]
[Date "2022.08.13"]
[Round "9.3"]
[White "Santiago, Yago De Moura"]
[Black "Vrolijk, Liam"]
[Result "1/2-1/2"]
[ECO "D41"]
[WhiteElo "2513"]
[BlackElo "2464"]
[Annotator "TA"]
[PlyCount "112"]
[EventDate "2022.08.05"]
[EventType "swiss"]
[EventCountry "NED"]
[SourceTitle "playchess.com"]
[Source "ChessBase"]
[SourceQuality "1"]
[TimeControl "40/5400+30:1800+30"]

{[%evp 11,112,30,30,25,33,27,27,27,34,32,28,29,28,27,27,29,28,7,34,36,27,35,27,49,45,43,47,56,56,52,48,56,60,68,63,59,62,62,61,54,72,68,63,58,50,51,55,51,69,69,75,64,75,81,80,79,81,83,104,89,80,42,42,39,37,31,27,17,20,22,22,0,19,19,49,38,43,34,35,19,57,8,8,8,8,8,8,8,8,8,8,8,8,8,8,8,8,0,0,-8,-8,-8,0]} 1. d4 {[%emt 0:00:05]} Nf6 {[%emt 0:09:46]} 2. c4 {[%emt 0:00:11]} e6 {[%emt 0:00:05]} 3. Nf3 {[%emt 0:00:28]} d5 {[%emt 0:00:06]} 4. Nc3 {[%emt 0:00:08]} c5 {[%emt 0:00:06]} 5. cxd5 {[%emt 0:00:56]} cxd4 {[%emt 0:00:20]} 6. Qxd4 {[%emt 0:01:57]} exd5 {[%emt 0:00:08]} 7. e4 {[%emt 0:02:05] D41: Queen's Gambit Declined: Semi-Tarrasch with 5 cxd5.} dxe4 {[%emt 0:00:06]} 8. Qxd8+ {[%emt 0:00:40]} Kxd8 {[%emt 0:00:08]} 9. Ng5 {[%emt 0:00:09][%csl LRe4,LRf7] White has an edge.} Be6 {[%emt 0:00:05]} 10. Nxe6+ {[%emt 0:02:12]} fxe6 {[%emt 0:00:45]} 11. Bg5 {[%emt 0:00:19]} Ke8 {[%emt 0:02:41] 11...Nc6 is more advanced technology.} 12. O-O-O {[%emt 0:04:46]} Nc6 {[%emt 0:01:15]} 13. Bb5 {[%emt 0:00:36]} Rc8 {[%emt 0:02:54]} 14. Kb1 {[%emt 0:01:30]} Bb4 {[%emt 0:03:07]} 15. Bxf6 {[%emt 0:01:20]} gxf6 {[%emt 0:00:11]} 16. Nxe4 {[%emt 0:00:09]} Ke7 {[%emt 0:08:52]} 17. a3 {[%emt 0:00:59] [#]} Ba5 $146 {[%emt 0:00:35]} ({Predecessor:} 17... f5 18. axb4 fxe4 19. Rhe1 Rhf8 20. Rd2 Rcd8 21. Rxd8 Nxd8 22. Re2 Nf7 23. Ba4 Nd6 {0-1 (79) Mamedyarov,S (2767)-Nepomniachtchi,I (2773) chess24.com INT 2022}) 18. Nd6 {[%emt 0:05:08]} Rc7 {[%emt 0:06:22]} 19. Nc4 $1 {[%emt 0:04:59] [#] Black must now prevent Bxc6.} Bb6 {[%emt 0:00:29]} 20. Nxb6 {[%emt 0:00:18]} axb6 {[%emt 0:00:07]} 21. Rhe1 {[%emt 0:00:18]} Rd8 {[%emt 0:15:55]} 22. Rxd8 {[%emt 0:03:41]} Nxd8 $14 {[%emt 0:00:06][%mdl 4096] Endgame KRB-KRN} 23. Re3 {[%emt 0:02:40]} Rc5 {[%emt 0:05:38]} 24. Bd3 {[%emt 0:08:14]} Rh5 {[%emt 0:03:46]} 25. h3 {[%emt 0:01:49]} f5 {[%emt 0:04:22]} 26. Bf1 {[%emt 0:28:25]} Rh4 {[%emt 0:04:03]} 27. Kc1 {[%emt 0:02:43]} Rf4 {[%emt 0:01:47]} 28. f3 {[%emt 0:00:33]} Rd4 {[%emt 0:04:27]} 29. Rb3 {[%emt 0:02:03]} Rd6 {[%emt 0:00:06]} 30. f4 {[%emt 0:02:29]} Kf6 {[%emt 0:03:49]} 31. Be2 {[%emt 0:02:57]} h6 {[%emt 0:04:37]} 32. Bf3 {[%emt 0:03:23]} Ke7 {[%emt 0:00:51]} 33. Bh5 {[%emt 0:04:43]} Rd4 {[%emt 0:00:58]} 34. g3 {[%emt 0:02:46]} ({Much worse is} 34. Rxb6 Rxf4 35. Bf3 e5 $11) 34... Rd6 {[%emt 0:03:21]} 35. Be2 {[%emt 0:00:54]} Kf6 {[%emt 0:00:42]} 36. Rb4 {[%emt 0:02:53]} e5 {[%emt 0:01:59]} 37. fxe5+ {[%emt 0:00:47]} Kxe5 {[%emt 0:00:22]} 38. Rb5+ {[%emt 0:04:11]} Ke4 {[%emt 0:01:36]} 39. Bd1 {[%emt 0:00:39]} Rc6+ {[%emt 0:05:53]} 40. Bc2+ {[%emt 0:03:48]} Kf3 {[%emt 0:00:06]} 41. Kb1 {[%emt 0:09:40] aiming for Rb3+.} Kxg3 {[%emt 0:03:58] And now ...f4 would win.} 42. Bxf5 {[%emt 0:00:33]} Kf4 {[%emt 0:01:47]} 43. Bc2 {[%emt 0:03:14]} Kg3 {[%emt 0:03:24]} 44. Rh5 {[%emt 0:01:54]} Rd6 {[%emt 0:30:49]} 45. Be4 {[%emt 0:01:56]} Rd4 {[%emt 0:00:00]} 46. Bd5 {[%emt 0:05:08]} (46. Bg6 $14) 46... Rh4 $1 $11 {[%emt 0:00:00] The position is equal.} 47. Rxh4 {[%emt 0:01:28]} Kxh4 {[%emt 0:00:00] KB-KN} 48. a4 {[%emt 0:00:19] Threatens to win with b4.} Kxh3 {[%emt 0:00:00]} 49. b4 {[%emt 0:01:08]} Kg4 {[%emt 0:00:00]} 50. a5 {[%emt 0:00:29]} bxa5 {[%emt 0:00:00]} 51. bxa5 {[%emt 0:00:07]} Kf4 {[%emt 0:00:00] [#]} 52. Bxb7 $1 {[%emt 0:11:43]} Ne6 {[%emt 0:00:00]} (52... Nxb7 $2 53. a6 Nc5 54. a7 $18) (52... Ke5 53. a6) 53. Kb2 {[%emt 0:00:00] a6 is the strong threat.} Ke5 {[%emt 0:00:00]} 54. Bc8 {[%emt 0:00:00] Threatening mate with Bxe6.} Nc7 {[%emt 0:00:00]} 55. Kb3 {[%emt 0:00:00]} Kd5 {[%emt 0:00:00]} 56. Kb4 {[%emt 0:00:00]} Kc6 {[%emt 0:00:00] Weighted Error Value: White=0.04 (flawless) /Black=0.04 (flawless)} 1/2-1/2

[Event "24th Hoogeschool Zeeland 2022"]
[Site "Vlissingen"]
[Date "2022.08.13"]
[Round "9.4"]
[White "Klepke, Ricardo"]
[Black "Beerdsen, Thomas"]
[Result "0-1"]
[ECO "E11"]
[WhiteElo "2293"]
[BlackElo "2500"]
[Annotator "TA"]
[PlyCount "84"]
[EventDate "2022.08.05"]
[EventType "swiss"]
[EventCountry "NED"]
[SourceTitle "playchess.com"]
[Source "ChessBase"]
[SourceQuality "1"]
[TimeControl "40/5400+30:1800+30"]

{[%evp 11,83,0,0,0,0,0,10,12,39,14,2,-16,0,-17,16,14,13,26,24,14,26,20,35,40,40,17,53,0,0,0,0,0,0,0,0,0,0,0,0,0,0,0,0,0,11,-36,-18,-52,-49,-89,-71,-92,-41,-47,-42,-76,-85,-117,-117,-117,-110,-118,-117,-117,-105,-125,-105,-552,-545,-1283,-1212,-29998,-29999,-29999]} 1. d4 {[%emt 0:00:04]} Nf6 {[%emt 0:07:25]} 2. c4 {[%emt 0:00:11]} e6 {[%emt 0:00:09]} 3. g3 {[%emt 0:00:20]} d5 {[%emt 0:00:18]} 4. Nf3 {[%emt 0:00:14]} Bb4+ {[%emt 0:00:15]} 5. Bd2 {[%emt 0:01:16]} Be7 {[%emt 0:00:07]} 6. Bg2 {[%emt 0:04:40]} O-O {[%emt 0:00:26]} 7. Qb3 {[%emt 0:03:12] E11: Bogo-Indian.} a5 {[%emt 0:03:29]} 8. O-O {[%emt 0:05:01] [#]} a4 $146 {[%emt 0:02:59]} ({Predecessor:} 8... c6 9. Rd1 b5 10. c5 Ne4 11. Bf4 Nd7 12. Nc3 g5 13. Nxe4 gxf4 14. Nd6 fxg3 15. hxg3 Bxd6 16. cxd6 {½-½ (45) Pogonina,N (2479)-Haug,J (2407) Caleta 2020}) 9. Qc2 {[%emt 0:01:47] The position is equal.} c6 {[%emt 0:09:47]} 10. Ne5 {[%emt 0:08:11]} Nbd7 {[%emt 0:05:16]} 11. Nxd7 {[%emt 0:06:34]} Bxd7 {[%emt 0:02:48]} 12. a3 {[%emt 0:10:42]} dxc4 {[%emt 0:04:55]} 13. Qxc4 {[%emt 0:01:48]} b5 {[%emt 0:07:11]} 14. Qd3 {[%emt 0:03:00]} Rc8 {[%emt 0:01:57]} 15. Nc3 {[%emt 0:06:05]} Qb6 {[%emt 0:02:22]} 16. Bg5 {[%emt 0:06:28]} Rfd8 {[%emt 0:04:22]} 17. Ne4 {[%emt 0:10:51]} Be8 {[%emt 0:00:48]} 18. Rfd1 {[%emt 0:02:55]} Rd7 {[%emt 0:17:39]} 19. Bxf6 {[%emt 0:08:54]} (19. Nxf6+ $1 $14 gxf6 20. Be3) 19... gxf6 $11 {[%emt 0:03:54]} 20. Qc3 {[%emt 0:00:31]} Rcd8 $1 {[%emt 0:01:56] And now ...f5 would win.} 21. d5 $1 {[%emt 0:01:16]} Rxd5 {[%emt 0:06:31]} 22. Rxd5 {[%emt 0:00:27]} Rxd5 {[%emt 0:00:08]} 23. Nxf6+ {[%emt 0:00:42]} Bxf6 {[%emt 0:00:05]} 24. Qxf6 {[%emt 0:00:06]} Qd8 $36 {[%emt 0:00:20][%mdl 2048] Black is more active.} 25. Qf4 {[%emt 0:02:47]} Rd4 {[%emt 0:04:25]} 26. Qe5 {[%emt 0:00:56]} h6 {[%emt 0:01:09]} 27. Bf3 {[%emt 0:00:47]} Qd6 {[%emt 0:00:31]} 28. Qe3 {[%emt 0:06:55]} (28. Qxd6 $11 Rxd6 29. Kf1) 28... e5 $15 {[%emt 0:00:39]} 29. Qc3 {[%emt 0:02:25]} c5 {[%emt 0:03:30][%cal Bc6c5,Bc5c4][%mdl 32]} 30. e3 {[%emt 0:01:53]} Rd3 {[%emt 0:01:12]} 31. Qa5 {[%emt 0:00:48]} Rd2 {[%emt 0:03:38]} (31... Bc6 $17 32. Bxc6 Qxc6) 32. Qa8 {[%emt 0:00:52]} Kf8 {[%emt 0:00:13][%cal Bg8f8,Bf8e7,Be7f6,Bf6g7][%mdl 32]} 33. Rc1 {[%emt 0:00:36]} c4 {[%emt 0:00:47]} 34. h4 {[%emt 0:01:16] [#]} Ke7 $1 {[%emt 0:01:48]} (34... Rxb2 $2 35. Rd1 Qxd1+ 36. Bxd1 $18) 35. Qa7+ {[%emt 0:00:26]} Kf6 {[%emt 0:01:30]} 36. Qa8 {[%emt 0:00:41] [#]} Bd7 {[%emt 0:00:35] White must now prevent ...Kg7.} 37. g4 {[%emt 0:01:14]} Kg7 {[%emt 0:00:28] ...Qf6 is the strong threat.} 38. Qe4 {[%emt 0:00:16]} Qf6 {[%emt 0:00:59] aiming for ...Be6. Black is more active.} ({But not} 38... Rxb2 $6 39. Rd1 Rd2 40. Rxd2 Qxd2 41. Qxe5+ Kg8 42. g5 hxg5 43. Qxg5+ Kf8 44. Qd8+ Kg7 45. Qg5+ Kf8 46. h5 $11) 39. h5 $2 {[%emt 0:01:37][%mdl 8192] White does not recover from this.} (39. Rd1 $17 {nothing else works.} Bc6 40. Qf5 Qxf5 41. gxf5 Rxd1+ 42. Bxd1) 39... Be6 $19 {[%emt 0:02:11]} 40. Qa8 {[%emt 0:00:43] [#]} Bxg4 $1 {[%emt 0:00:25][%mdl 512]} 41. Bxg4 {[%emt 0:01:08]} (41. Be2 Rxe2) 41... Qxf2+ {[%emt 0:01:48]} 42. Kh1 {[%emt 0:00:06]} Qh2# {[%emt 0:00:05] Weighted Error Value: White=0.55/Black=0.06 (flawless)} 0-1

[Event "24th Hoogeschool Zeeland 2022"]
[Site "Vlissingen"]
[Date "2022.08.13"]
[Round "9.5"]
[White "Stillger, Bernhard"]
[Black "Baklan, Vladimir"]
[Result "0-1"]
[ECO "A05"]
[WhiteElo "2245"]
[BlackElo "2589"]
[Annotator "TA"]
[PlyCount "126"]
[EventDate "2022.08.05"]
[EventType "swiss"]
[EventCountry "NED"]
[SourceTitle "playchess.com"]
[Source "ChessBase"]
[SourceQuality "1"]
[TimeControl "40/5400+30:1800+30"]

{[%evp 9,126,38,45,22,16,0,0,0,0,2,0,0,19,10,13,-9,-13,-13,0,-22,-16,-38,-34,-36,-25,-31,-26,-36,-16,-15,0,-24,-30,-28,-28,-42,-42,-34,-23,-77,-63,-67,-16,-43,-16,-79,-78,-76,-14,-14,-3,-31,-34,-131,-72,-172,-154,-156,-153,-245,-223,-208,-159,-149,-135,-147,-133,-135,-132,-154,-138,-137,-52,-44,-47,-394,-374,-346,-340,-331,-322,-317,-308,-285,-257,-286,-275,-640,-310,-1702,-1377,-1587,-1574,-1424,-1285,-1951,-1140,-1927,-1852,-1635,-1399,-1068,-895,-12843,-12843,-12844,-12844,-12845,-90,-90,0,-12848,-12848,-12849,-12849,-12850,-12849,-12850,-12850]} 1. Nf3 {[%emt 0:00:04]} Nf6 {[%emt 0:00:11]} 2. g3 {[%emt 0:00:11]} b5 {[%emt 0:02:01]} 3. Bg2 {[%emt 0:03:58]} Bb7 {[%emt 0:00:13]} 4. O-O {[%emt 0:00:47]} c5 {[%emt 0:00:49]} 5. d3 {[%emt 0:00:47]} d5 {[%emt 0:12:21]} 6. a4 {[%emt 0:03:36] A05: Réti Opening: 1 Nf3 Nf6.} b4 {[%emt 0:00:39]} 7. e4 {[%emt 0:03:44]} e6 {[%emt 0:11:40]} 8. exd5 {[%emt 0:03:05] The position is equal.} Bxd5 {[%emt 0:00:03]} 9. Nbd2 {[%emt 0:01:59]} Be7 {[%emt 0:01:18]} 10. Nc4 {[%emt 0:01:27]} Nbd7 {[%emt 0:00:30]} 11. Re1 {[%emt 0:05:04]} O-O {[%emt 0:00:56] [#]} 12. Nfe5 $146 {[%emt 0:01:04]} ({Predecessor:} 12. Nfd2 Qc7 13. Bxd5 Nxd5 14. a5 Nb8 15. Nb3 Nc6 16. Be3 Nxe3 17. Rxe3 Rfd8 18. Re4 {0-1 (90) Morrison,G (2340)-Arkell,K (2445) Edinburgh 1989}) 12... Nxe5 {[%emt 0:03:58]} 13. Nxe5 {[%emt 0:02:35]} Qc7 {[%emt 0:00:21]} 14. a5 {[%emt 0:06:00]} Rad8 {[%emt 0:06:46]} 15. Bf4 {[%emt 0:13:03][%cal Oe5f7] Nxf7! is the strong threat.} Bxg2 {[%emt 0:16:14]} 16. Kxg2 {[%emt 0:00:40]} Nd5 {[%emt 0:00:02]} 17. Bd2 {[%emt 0:02:57]} Bf6 {[%emt 0:00:06]} 18. Nc4 {[%emt 0:03:40]} Rfe8 {[%emt 0:02:14]} (18... Ne7 {is interesting.} 19. Bf4 Qc8 20. Be5 Bxe5 21. Rxe5 Nf5) 19. Qf3 {[%emt 0:02:09]} Qd7 {[%emt 0:06:09]} 20. Rad1 {[%emt 0:07:52]} Qa4 {[%emt 0:04:10]} 21. b3 {[%emt 0:03:01]} Qd7 {[%emt 0:00:18]} 22. Rh1 {[%emt 0:05:16]} Bd4 {[%emt 0:01:45]} 23. h4 {[%emt 0:04:09]} e5 {[%emt 0:03:20]} 24. h5 {[%emt 0:03:57]} (24. Rde1 $1 $11 {was the only way to keep the balance.}) 24... f5 $17 {[%emt 0:03:49]} 25. Rde1 {[%emt 0:05:11]} Re6 {[%emt 0:05:17]} (25... h6 $15) 26. Be3 $11 {[%emt 0:03:15]} (26. Qxf5 $2 Rf8 27. Qxf8+ Kxf8 $19) 26... Bc3 {[%emt 0:03:22]} 27. Rd1 {[%emt 0:04:47]} (27. Qxf5 $11 Rf8 28. Qg4) 27... Qc6 {[%emt 0:00:57]} 28. Bg5 {[%emt 0:01:28]} e4 {[%emt 0:02:19]} (28... Rd7 $17 {And now ...e4 would win.} 29. Kg1 Rf7) 29. dxe4 {[%emt 0:01:33]} (29. Qxf5 $2 Rf8 30. Qg4 exd3 $19) 29... fxe4 {[%emt 0:00:06]} 30. Qe2 {[%emt 0:02:07]} Rf8 {[%emt 0:06:21]} 31. Be3 {[%emt 0:01:21]} (31. Ne3 $1 $15 Bd4 32. Nxd5 Qxd5 33. Be3) 31... Bd4 {[%emt 0:00:16]} (31... Ref6 $142 {[%cal Of6f2] Hoping for ...Rxf2+!} 32. Qg4 Rxf2+ $3 {[%mdl 512]} 33. Bxf2 e3) 32. Rdf1 {[%emt 0:00:58]} ({Avoid the trap} 32. Bxd4 $2 e3 33. Kh2 (33. f3 $2 cxd4 34. Rd3 Nc3 $19) 33... Rxf2+ 34. Qxf2 exf2 35. Bxf2 Re2 $19) (32. Qg4 $17) 32... Nc3 {[%emt 0:02:33]} 33. Qg4 {[%emt 0:00:42]} h6 {[%emt 0:00:12]} 34. Kh2 {[%emt 0:01:00]} (34. Re1 $17 {was called for.}) 34... Qd5 {[%emt 0:00:23]} 35. Bf4 {[%emt 0:00:41]} Ref6 {[%emt 0:02:17]} 36. Ne3 {[%emt 0:00:58]} Qf7 {[%emt 0:00:10]} 37. Kg2 {[%emt 0:01:14]} Nd5 {[%emt 0:00:10]} 38. Nxd5 {[%emt 0:00:32]} Qxd5 {[%emt 0:00:04]} 39. Qe2 {[%emt 0:00:22]} e3+ {[%emt 0:01:57]} 40. f3 {[%emt 0:00:12]} Rxf4 {[%emt 0:02:05] Black is much more active.} ({Better is} 40... Re6 $17 {White must now prevent ...g5.} 41. Rd1 Rfe8) 41. gxf4 $15 {[%emt 0:30:21]} Rxf4 $40 {[%emt 0:30:03][%mdl 128] ( -> ...Qg5+). Black mounts an attack.} 42. Qc4 $2 {[%emt 0:00:27][%mdl 8192]} (42. Rh3 $1 $15) 42... Qxc4 $19 {[%emt 0:01:40] Really sharp!} 43. bxc4 {[%emt 0:01:33][%mdl 4096] Endgame KRR-KRB} Bc3 {[%emt 0:00:07] Inhibits Re1.} 44. Rb1 {[%emt 0:00:00]} e2 {[%emt 0:00:00]} ({Stronger than} 44... Rxc4 45. Kf1 $19) 45. Kf2 {[%emt 0:00:00]} e1=Q+ {[%emt 0:00:00]} 46. Rhxe1 {[%emt 0:00:00]} Bxe1+ {[%emt 0:00:00]} 47. Rxe1 {[%emt 0:00:00]} Rxc4 {[%emt 0:00:00] KR-KR} 48. Re7 $2 {[%emt 0:00:00]} (48. Re2) 48... a6 {[%emt 0:00:00]} (48... Rxc2+ $142 49. Ke3 Rc3+ 50. Kd2 a6) 49. Ra7 $2 {[%emt 0:00:00]} (49. Re2) 49... Rxc2+ {[%emt 0:00:00]} 50. Ke3 {[%emt 0:00:00]} c4 {[%emt 0:00:00]} ({Weaker is} 50... Rc3+ 51. Ke2 $17) 51. Rxa6 {[%emt 0:00:00]} Ra2 {[%emt 0:00:00]} 52. Rb6 {[%emt 0:00:00]} Rxa5 {[%emt 0:00:00]} 53. Rxb4 {[%emt 0:00:00]} Rc5 {[%emt 0:00:00]} 54. Kd4 {[%emt 0:00:00]} Rxh5 {[%emt 0:00:00] Strongly threatening ...Rf5.} 55. Rb8+ {[%emt 0:00:00]} Kf7 {[%emt 0:00:00]} 56. Kxc4 {[%emt 0:00:00]} Rf5 {[%emt 0:00:00]} 57. Rb3 {[%emt 0:00:00]} Rf4+ {[%emt 0:00:00]} 58. Kd5 {[%emt 0:00:00] [#]} g5 $2 {[%emt 0:00:00]} (58... Kf6 $1 $19 {is more deadly.} 59. Rb6+ Kf5) 59. Ke5 $17 {[%emt 0:00:10] [#]} Kg6 {[%emt 0:00:00]} (59... Rf6 $1 $17 {Threatens to win with ...Kg6.} 60. Ke4 h5) 60. Ra3 $2 {[%emt 0:05:18][%mdl 8192]} (60. Rb6+ $11 Kh5 61. Rb3) 60... Kh5 $19 {[%emt 0:00:00] Black is clearly winning.} 61. Rb3 {[%emt 0:00:36]} Kh4 {[%emt 0:00:00]} 62. Rb6 {[%emt 0:00:14]} h5 {[%emt 0:00:50]} 63. Rb3 {[%emt 0:00:14]} Kg3 {[%emt 0:00:27] Weighted Error Value: White=0.74/Black=0.32} 0-1